fUSD/lending_fUSD_20240215
["ID","MTS","AMOUNT","RATE_DAILY","PERIOD"]
[314133136,1708015845570,-508.45040547,0.00038356,7]
[314133138,1708015845579,-516.7573532,0.00038356,7]
[314133140,1708015845588,-500.0,0.00038356,7]
[314133141,1708015845597,-526.8737047,0.00038356,7]
[314133143,1708015845606,-500.0,0.00038356,7]
[314133145,1708015845616,-511.47203932,0.00038356,7]
[314133148,1708015845625,-500.0,0.00038356,7]
[314133149,1708015845634,-500.0,0.00038356,7]
[314133151,1708015845643,-500.0,0.00038356,7]
[314133153,1708015845652,-521.14197845,0.00038356,7]
[314133155,1708015845661,-514.98808207,0.00038356,7]
[314133158,1708015845670,-505.23972357,0.00038356,7]
[314133160,1708015845679,-500.0,0.00038356,7]
[314133162,1708015845688,-500.0,0.00038356,7]
[314133164,1708015845697,-666.39133084,0.00038356,7]
[314133166,1708015845707,-500.0,0.00038356,7]
[314133168,1708015845717,-500.0,0.00038356,7]
[314133170,1708015845726,-500.0,0.00038356,7]
[314133172,1708015845735,-500.0,0.00038356,7]
[314133174,1708015845745,-500.0,0.00038356,7]
[314133176,1708015845754,-500.0,0.00038356,7]
[314133178,1708015845763,-500.0,0.00038356,7]
[314133180,1708015845772,-508.65588899,0.00038356,7]
[314133182,1708015845782,-510.76620149,0.00038356,7]
[314133184,1708015845791,-500.0,0.00038356,7]
[314133186,1708015845800,-277.89672637,0.00038356,7]
[314133188,1708015845809,-739.68,0.00038356,7]
[314133190,1708015845818,-500.0,0.00038356,7]
[314133192,1708015845827,-500.0,0.00038356,7]
[314133194,1708015845836,-507.26248214,0.00038356,7]
[314133196,1708015845845,-500.0,0.00038356,7]
[314133198,1708015845854,-500.0,0.00038356,7]
[314133199,1708015845863,-500.0,0.00038356,7]
[314133201,1708015845872,-500.0,0.00038356,7]
[314133204,1708015845881,-500.0,0.00038356,7]
[314133206,1708015845890,-668.38,0.00038356,7]
[314133208,1708015845899,-500.0,0.00038356,7]
[314133210,1708015845909,-500.0,0.00038356,7]
[314133212,1708015845918,-502.86564645,0.00038356,7]
[314133214,1708015845927,-500.0,0.00038356,7]
[314133216,1708015845936,-1000.0,0.00038356,120]
[314133218,1708015845945,-500.0,0.00038356,7]
[314133219,1708015845955,-327.8236242,0.00038356,7]
[314133222,1708015845965,-500.0,0.00038356,7]
[314133223,1708015845974,-501.45310918,0.00038356,7]
[314133225,1708015845982,-500.0,0.00038356,7]
[314133235,1708015845991,-500.0,0.00038356,7]
[314133237,1708015846131,-500.0,0.00038356,7]
[314133238,1708015846140,-500.0,0.00038356,7]
[314133239,1708015846150,-500.0,0.00038356,7]
[314133240,1708015846159,-500.0,0.00038356,7]
[314133241,1708015846169,-1057.3,0.00038356,7]
[314133242,1708015846178,-404.07768627,0.00038356,7]
[314133243,1708015846188,-500.0,0.00038356,7]
[314133244,1708015846198,-500.0,0.00038356,2]
[314133245,1708015846210,-505.88423279,0.00038356,7]
[314133246,1708015846219,-500.0,0.00038356,7]
[314133247,1708015846229,-500.0,0.00038356,7]
[314133248,1708015846239,-513.42858354,0.00038356,7]
[314133249,1708015846248,-500.0,0.00038356,7]
[314133250,1708015846258,-500.0,0.00038356,7]
[314133251,1708015846267,-511.36,0.00038356,7]
[314133252,1708015846277,-1266.55,0.00038356,7]
[314133253,1708015846287,-500.0,0.00038356,7]
[314133254,1708015846297,-526.14456712,0.00038356,7]
[314133255,1708015846307,-500.0,0.00038356,7]
[314133256,1708015846316,-500.0,0.00038356,7]
[314133257,1708015846325,-503.32541758,0.00038356,7]
[314133258,1708015846336,-500.0,0.00038356,7]
[314133259,1708015846347,-637.87208813,0.00038356,7]
[314133260,1708015846358,-3434.43,0.00038356,7]
[314133261,1708015846368,-500.0,0.00038356,7]
[314133262,1708015846378,-500.0,0.00038356,7]
[314133263,1708015846388,-500.0,0.00038356,7]
[314133264,1708015846398,-500.0,0.00038356,7]
[314133265,1708015846407,-504.39652665,0.00038356,7]
[314133266,1708015846417,-500.0,0.00038356,7]
[314133267,1708015846426,-500.0,0.00038356,7]
[314133268,1708015846436,-500.0,0.00038356,7]
[314133269,1708015846445,-587.34,0.00038356,7]
[314133270,1708015846457,-500.0,0.00038356,7]
[314133271,1708015846469,-510.0555739,0.00038356,14]
[314133272,1708015846478,-510.05381595,0.00038356,7]
[314133273,1708015846487,-500.0,0.00038356,7]
[314133274,1708015846496,-500.0,0.00038356,7]
[314133275,1708015846505,-500.0,0.00038356,7]
[314133276,1708015846515,-500.0,0.00038356,7]
[314133277,1708015846524,-500.0,0.00038356,7]
[314133278,1708015846533,-516.56412981,0.00038356,7]
[314133279,1708015846542,-500.0,0.00038356,7]
[314133280,1708015846551,-500.0,0.00038356,7]
[314133281,1708015846560,-500.0,0.00038356,7]
[314133282,1708015846570,-500.0,0.00038356,7]
[314133283,1708015846578,-500.0,0.00038356,7]
[314133284,1708015846588,-500.0,0.00038356,7]
[314133285,1708015846597,-500.0,0.00038356,7]
[314133286,1708015846606,-502.37675319,0.00038356,7]
[314133287,1708015846616,-516.38417934,0.00038356,7]
[314133288,1708015846625,-500.0,0.00038356,7]
[314133289,1708015846635,-500.0,0.00038356,7]
[314133290,1708015846644,-500.0,0.00038356,7]
[314133291,1708015846653,-500.0,0.00038356,7]
[314133292,1708015846662,-526.18764561,0.00038356,7]
[314133293,1708015846672,-773.39,0.00038356,7]
[314133294,1708015846681,-1000.0,0.00038356,7]
[314133295,1708015846689,-500.0,0.00038356,7]
[314133296,1708015846699,-500.0,0.00038356,7]
[314133297,1708015846710,-500.0,0.00038356,7]
[314133298,1708015846719,-500.0,0.00038356,7]
[314133299,1708015846728,-500.0,0.00038356,7]
[314133300,1708015846737,-500.0,0.00038356,7]
[314133301,1708015846746,-500.0,0.00038356,7]
[314133302,1708015846756,-500.0,0.00038356,7]
[314133303,1708015846765,-500.0,0.00038356,7]
[314133304,1708015846774,-500.0,0.00038356,7]
[314133305,1708015846783,-505.17167283,0.00038356,7]
[314133306,1708015846792,-2115.51,0.00038356,7]
[314133307,1708015846801,-500.0,0.00038356,7]
[314133308,1708015846811,-500.0,0.00038356,7]
[314133309,1708015846820,-967.31,0.00038356,7]
[314133310,1708015846829,-500.0,0.00038356,7]
[314133311,1708015846838,-500.0,0.00038356,7]
[314133312,1708015846847,-500.0,0.00038356,7]
[314133313,1708015846856,-500.0,0.00038356,7]
[314133314,1708015846865,-500.0,0.00038356,7]
[314133315,1708015846873,-500.0,0.00038356,7]
[314133316,1708015846882,-700.69,0.00038356,7]
[314133317,1708015846891,-500.0,0.00038356,7]
[314133318,1708015846901,-500.0,0.00038356,7]
[314133319,1708015846910,-500.0,0.00038356,7]
[314133320,1708015846919,-506.58485375,0.00038356,7]
[314133321,1708015846928,-500.0,0.00038356,7]
[314133322,1708015846937,-500.0,0.00038356,7]
[314133323,1708015846946,-500.0,0.00038356,7]
[314133324,1708015846955,-500.0,0.00038356,7]
[314133325,1708015846966,-1057.05761322,0.00038356,7]
[314133326,1708015846975,-4050.69,0.00038356,7]
[314133327,1708015846984,-500.0,0.00038356,7]
[314133328,1708015846993,-2593.43,0.00038356,7]
[314133329,1708015847002,-509.59200334,0.00038356,7]
[314133330,1708015847011,-493.62415732,0.00038356,7]
[314133331,1708015847020,-500.0,0.00038356,7]
[314133332,1708015847029,-500.0,0.00038356,7]
[314133333,1708015847038,-3358.08296838,0.00038356,30]
[314133334,1708015847047,-500.0,0.00038356,7]
[314133335,1708015847056,-500.0,0.00038356,7]
[314133336,1708015847065,-500.0,0.00038356,7]
[314133337,1708015847074,-510.31746306,0.00038356,7]
[314133338,1708015847083,-500.0,0.00038356,7]
[314133339,1708015847092,-1250.17,0.00038356,7]
[314133340,1708015847101,-500.0,0.00038356,7]
[314133341,1708015847110,-500.0,0.00038356,7]
[314133342,1708015847119,-1084.82,0.00038356,7]
[314133343,1708015847128,-500.0,0.00038356,7]
[314133344,1708015847138,-555.14699859,0.00038356,7]
[314133345,1708015847147,-569.50626155,0.00038356,2]
[314133346,1708015847156,-500.0,0.00038356,7]
[314133347,1708015847165,-500.0,0.00038356,7]
[314133348,1708015847174,-612.36,0.00038356,7]
[314133349,1708015847183,-542.07550084,0.00038356,7]
[314133350,1708015847192,-502.79507956,0.00038356,7]
[314133351,1708015847201,-500.0,0.00038356,7]
[314133352,1708015847211,-504.70462892,0.00038356,7]
[314133353,1708015847221,-500.0,0.00038356,7]
[314133354,1708015847230,-500.0,0.00038356,7]
[314133355,1708015847239,-500.0,0.00038356,7]
[314133356,1708015847248,-500.0,0.00038356,7]
[314133357,1708015847257,-500.0,0.00038356,7]
[314133358,1708015847267,-1255.58,0.00038356,7]
[314133359,1708015847276,-500.0,0.00038356,7]
[314133360,1708015847285,-500.0,0.00038356,7]
[314133361,1708015847294,-500.0,0.00038356,7]
[314133362,1708015847303,-500.0,0.00038356,7]
[314133363,1708015847312,-8018.1,0.00038356,7]
[314133364,1708015847321,-500.0,0.00038356,7]
[314133365,1708015847331,-500.0,0.00038356,7]
[314133366,1708015847342,-500.0,0.00038356,7]
[314133367,1708015847354,-500.0,0.00038356,7]
[314133368,1708015847364,-500.0,0.00038356,7]
[314133369,1708015847373,-500.0,0.00038356,7]
[314133370,1708015847384,-500.0,0.00038356,7]
[314133371,1708015847393,-500.0,0.00038356,7]
[314133372,1708015847402,-500.0,0.00038356,7]
[314133373,1708015847412,-532.39482711,0.00038356,7]
[314133374,1708015847421,-503.17464348,0.00038356,7]
[314133375,1708015847431,-510.15675536,0.00038356,7]
[314133376,1708015847440,-500.0,0.00038356,7]
[314133377,1708015847450,-500.0,0.00038356,7]
[314133378,1708015847460,-500.0,0.00038356,7]
[314133379,1708015847470,-542.35782419,0.00038356,7]
[314133380,1708015847478,-500.0,0.00038356,7]
[314133381,1708015847487,-500.0,0.00038356,7]
[314133382,1708015847497,-500.0,0.00038356,2]
[314133383,1708015847506,-500.0,0.00038356,7]
[314133384,1708015847516,-500.0,0.00038356,7]
[314133385,1708015847525,-500.0,0.00038356,7]
[314133386,1708015847534,-500.0,0.00038356,7]
[314133387,1708015847543,-500.0,0.00038356,7]
[314133388,1708015847553,-398.64372058,0.00038356,7]
[314133389,1708015847562,-511.74062332,0.00038356,7]
[314133390,1708015847571,-500.0,0.00038356,7]
[314133391,1708015847580,-521.05108576,0.00038356,7]
[314133392,1708015847589,-500.0,0.00038356,7]
[314133393,1708015847599,-500.78516588,0.00038356,7]
[314133394,1708015847608,-513.54360005,0.00038356,7]
[314133395,1708015847617,-500.0,0.00038356,7]
[314133396,1708015847626,-150.0,0.00038356,2]
[314133397,1708015847635,-500.0,0.00038356,7]
[314133398,1708015847644,-755.42,0.00038356,7]
[314133399,1708015847653,-522.06728,0.00038356,7]
[314133400,1708015847664,-3419.92,0.00038356,7]
[314133401,1708015847673,-500.0,0.00038356,7]
[314133402,1708015847682,-500.0,0.00038356,7]
[314133403,1708015847691,-548.96061927,0.00038356,7]
[314133404,1708015847700,-500.0,0.00038356,7]
[314133405,1708015847710,-500.0,0.00038356,7]
[314133406,1708015847720,-500.0,0.00038356,7]
[314133407,1708015847729,-614.35472659,0.00038356,7]
[314133408,1708015847738,-530.38277223,0.00038356,7]
[314133409,1708015847747,-500.0,0.00038356,7]
[314133410,1708015847756,-515.0744271,0.00038356,7]
[314133411,1708015847765,-500.0,0.00038356,7]
[314133412,1708015847774,-500.0,0.00038356,7]
[314133413,1708015847783,-500.0,0.00038356,7]
[314133414,1708015847792,-500.0,0.00038356,7]
[314133415,1708015847801,-842.1,0.00038356,7]
[314133416,1708015847810,-500.0,0.00038356,7]
[314133417,1708015847819,-500.0,0.00038356,7]
[314133418,1708015847828,-500.0,0.00038356,7]
[314133419,1708015847837,-500.0,0.00038356,7]
[314133420,1708015847846,-1980.76,0.00038356,7]
[314133421,1708015847856,-500.0,0.00038356,7]
[314133422,1708015847865,-286.36238261,0.00038356,7]
[314133423,1708015847874,-500.0,0.00038356,7]
[314133424,1708015847883,-486.21273247,0.00038356,7]
[314133425,1708015847892,-500.0,0.00038356,7]
[314133426,1708015847902,-500.0,0.00038356,7]
[314133427,1708015847911,-500.0,0.00038356,7]
[314133428,1708015847920,-500.0,0.00038356,7]
[314133429,1708015847929,-500.0,0.00038356,7]
[314133430,1708015847938,-500.0,0.00038356,7]
[314133431,1708015847947,-628.08548272,0.00038356,7]
[314133432,1708015847957,-500.0,0.00038356,7]
[314133433,1708015847966,-500.0,0.00038356,7]
[314133434,1708015847975,-500.0,0.00038356,7]
[314133435,1708015847984,-564.65,0.00038356,7]
[314133436,1708015847993,-562.08,0.00038356,7]
[314133437,1708015848003,-200.67217129,0.00038356,7]
[314133438,1708015848012,-921.77,0.00038356,7]
[314133439,1708015848021,-500.0,0.00038356,7]
[314133440,1708015848030,-500.0,0.00038356,7]
[314133441,1708015848039,-500.0,0.00038356,7]
[314133442,1708015848048,-506.15,0.00038356,7]
[314133443,1708015848057,-500.0,0.00038356,7]
[314133444,1708015848066,-1404.27,0.00038356,7]
[314133445,1708015848076,-500.0,0.00038356,7]
[314133446,1708015848085,-500.0,0.00038356,7]
[314133447,1708015848094,-500.0,0.00038356,7]
[314133448,1708015848103,-607.23,0.00038356,7]
[314133449,1708015848112,-500.0,0.00038356,7]
[314133450,1708015848121,-500.0,0.00038356,7]
[314133451,1708015848130,-500.0,0.00038356,7]
[314133452,1708015848139,-500.0,0.00038356,7]
[314133453,1708015848148,-670.69,0.00038356,7]
[314133454,1708015848157,-500.0,0.00038356,7]
[314133455,1708015848166,-500.0,0.00038356,7]
[314133456,1708015848175,-500.0,0.00038356,7]
[314133457,1708015848183,-535.5745864,0.00038356,7]
[314133458,1708015848193,-500.0,0.00038356,7]
[314133459,1708015848202,-500.0,0.00038356,7]
[314133460,1708015848213,-500.0,0.00038356,7]
[314133461,1708015848222,-500.0,0.00038356,7]
[314133462,1708015848231,-500.0,0.00038356,7]
[314133463,1708015848240,-500.0,0.00038356,7]
[314133464,1708015848250,-500.0,0.00038356,7]
[314133465,1708015848259,-500.0,0.00038356,7]
[314133466,1708015848268,-542.95757459,0.00038356,7]
[314133467,1708015848277,-500.0,0.00038356,7]
[314133468,1708015848286,-853.76,0.00038356,7]
[314133469,1708015848295,-500.0,0.00038356,7]
[314133470,1708015848305,-504.1537446,0.00038356,7]
[314133471,1708015848314,-500.0,0.00038356,7]
[314133472,1708015848323,-509.62,0.00038356,7]
[314133473,1708015848334,-500.0,0.00038356,7]
[314133474,1708015848344,-516.7015878,0.00038356,7]
[314133475,1708015848357,-500.0,0.00038356,7]
[314133476,1708015848366,-500.0,0.00038356,7]
[314133477,1708015848374,-500.0,0.00038356,7]
[314133478,1708015848384,-10000.0,0.00038356,3]
[314133479,1708015848393,-507.05571081,0.00038356,7]
[314133480,1708015848402,-2108.71,0.00038356,7]
[314133481,1708015848410,-500.0,0.00038356,7]
[314133482,1708015848419,-506.70872341,0.00038356,7]
[314133483,1708015848429,-500.0,0.00038356,7]
[314133484,1708015848438,-400.30973961,0.00038356,7]
[314133485,1708015848446,-500.0,0.00038356,7]
[314133486,1708015848456,-500.0,0.00038356,7]
[314133487,1708015848467,-797.35,0.00038356,7]
[314133488,1708015848476,-500.0,0.00038356,7]
[314133489,1708015848486,-565.71683865,0.00038356,7]
[314133490,1708015848496,-500.0,0.00038356,7]
[314133491,1708015848505,-500.0,0.00038356,7]
[314133492,1708015848514,-500.0,0.00038356,7]
[314133493,1708015848523,-665.36,0.00038356,7]
[314133494,1708015848533,-633.98,0.00038356,7]
[314133495,1708015848542,-500.0,0.00038356,7]
[314133496,1708015848551,-500.0,0.00038356,7]
[314133497,1708015848560,-2647.81,0.00038356,7]
[314133498,1708015848570,-500.0,0.00038356,7]
[314133499,1708015848579,-500.0,0.00038356,7]
[314133500,1708015848588,-500.0,0.00038356,7]
[314133501,1708015848597,-506.35142436,0.00038356,7]
[314133502,1708015848606,-500.0,0.00038356,7]
[314133503,1708015848615,-500.0,0.00038356,7]
[314133504,1708015848624,-500.0,0.00038356,7]
[314133505,1708015848752,-500.0,0.00038356,7]
[314133506,1708015848761,-500.0,0.00038356,7]
[314133507,1708015848770,-500.0,0.00038356,7]
[314133508,1708015848779,-521.25867656,0.00038356,7]
[314133509,1708015848788,-4779.96,0.00038356,7]
[314133510,1708015848797,-500.0,0.00038356,7]
[314133511,1708015848807,-518.84090823,0.00038356,7]
[314133512,1708015848815,-500.0,0.00038356,7]
[314133513,1708015848824,-500.0,0.00038356,7]
[314133514,1708015848834,-500.0,0.00038356,7]
[314133515,1708015848843,-500.0,0.00038356,7]
[314133516,1708015848852,-500.0,0.00038356,7]
[314133517,1708015848861,-500.0,0.00038356,7]
[314133518,1708015848870,-500.0,0.00038356,7]
[314133519,1708015848879,-500.0,0.00038356,7]
[314133520,1708015848889,-500.0,0.00038356,7]
[314133521,1708015848897,-500.0,0.00038356,7]
[314133522,1708015848906,-500.0,0.00038356,7]
[314133523,1708015848916,-500.0,0.00038356,7]
[314133524,1708015848925,-500.0,0.00038356,7]
[314133525,1708015848934,-500.0,0.00038356,7]
[314133526,1708015848943,-516.02146452,0.00038356,7]
[314133527,1708015848953,-519.53,0.00038356,7]
[314133528,1708015848962,-500.0,0.00038356,7]
[314133529,1708015848971,-508.49537156,0.00038356,7]
[314133530,1708015848981,-500.0,0.00038356,7]
[314133531,1708015848990,-2544.54,0.00038356,7]
[314133532,1708015848999,-510.62743783,0.00038356,7]
[314133533,1708015849009,-525.26207875,0.00038356,7]
[314133534,1708015849017,-500.0,0.00038356,7]
[314133535,1708015849026,-500.0,0.00038356,7]
[314133536,1708015849036,-506.23206826,0.00038356,7]
[314133537,1708015849044,-519.85982458,0.00038356,7]
[314133538,1708015849053,-510.24477353,0.00038356,7]
[314133539,1708015849062,-500.0,0.00038356,7]
[314133540,1708015849071,-500.0,0.00038356,7]
[314133541,1708015849080,-781.39,0.00038356,7]
[314133542,1708015849089,-500.0,0.00038356,7]
[314133543,1708015849098,-500.0,0.00038356,7]
[314133544,1708015849107,-500.0,0.00038356,7]
[314133545,1708015849116,-500.0,0.00038356,7]
[314133546,1708015849126,-533.10416827,0.00038356,7]
[314133547,1708015849135,-500.0,0.00038356,2]
[314133548,1708015849145,-323.11271249,0.00038356,7]
[314133549,1708015849155,-513.36435897,0.00038356,7]
[314133550,1708015849164,-615.0,0.00038356,7]
[314133551,1708015849174,-875.88,0.00038356,7]
[314133552,1708015849183,-500.0,0.00038356,7]
[314133553,1708015849193,-622.70929628,0.00038356,7]
[314133554,1708015849201,-500.0,0.00038356,7]
[314133555,1708015849213,-501.8597257,0.00038356,7]
[314133556,1708015849223,-824.05,0.00038356,7]
[314133557,1708015849232,-505.88300086,0.00038356,7]
[314133558,1708015849241,-742.73,0.00038356,7]
[314133559,1708015849250,-500.0,0.00038356,7]
[314133560,1708015849259,-500.0,0.00038356,7]
[314133561,1708015849268,-500.0,0.00038356,7]
[314133562,1708015849277,-500.0,0.00038356,7]
[314133563,1708015849287,-500.0,0.00038356,7]
[314133564,1708015849296,-500.0,0.00038356,7]
[314133565,1708015849306,-507.57634302,0.00038356,7]
[314133566,1708015849314,-500.0,0.00038356,7]
[314133567,1708015849324,-500.0,0.00038356,7]
[314133568,1708015849333,-500.0,0.00038356,7]
[314133569,1708015849347,-500.0,0.00038356,7]
[314133570,1708015849357,-500.0,0.00038356,7]
[314133571,1708015849365,-574.13,0.00038356,7]
[314133572,1708015849375,-4753.6,0.00038356,7]
[314133573,1708015849385,-500.0,0.00038356,7]
[314133574,1708015849394,-1727.98,0.00038356,7]
[314133575,1708015849403,-509.59231474,0.00038356,7]
[314133576,1708015849413,-504.22095488,0.00038356,7]
[314133577,1708015849423,-500.0,0.00038356,7]
[314133578,1708015849433,-500.0,0.00038356,7]
[314133579,1708015849442,-500.0,0.00038356,7]
[314133580,1708015849451,-500.0,0.00038356,7]
[314133581,1708015849462,-500.0,0.00038356,7]
[314133582,1708015849471,-500.0,0.00038356,7]
[314133583,1708015849481,-500.0,0.00038356,7]
[314133584,1708015849489,-500.0,0.00038356,7]
[314133585,1708015849498,-500.0,0.00038356,7]
[314133586,1708015849507,-1090.18,0.00038356,7]
[314133587,1708015849517,-515.99622908,0.00038356,7]
[314133588,1708015849526,-500.0,0.00038356,7]
[314133589,1708015849535,-539.87084169,0.00038356,7]
[314133590,1708015849544,-500.0,0.00038356,7]
[314133591,1708015849553,-500.0,0.00038356,7]
[314133592,1708015849562,-500.0,0.00038356,7]
[314133593,1708015849572,-500.0,0.00038356,7]
[314133594,1708015849581,-623.65705456,0.00038356,7]
[314133595,1708015849590,-500.0,0.00038356,7]
[314133596,1708015849599,-500.0,0.00038356,7]
[314133597,1708015849609,-500.0,0.00038356,7]
[314133598,1708015849619,-500.0,0.00038356,7]
[314133599,1708015849628,-500.0,0.00038356,7]
[314133600,1708015849638,-513.07399887,0.00038356,7]
[314133601,1708015849647,-527.49030437,0.00038356,7]
[314133602,1708015849657,-500.0,0.00038356,7]
[314133603,1708015849666,-1063.09,0.00038356,7]
[314133604,1708015849675,-500.0,0.00038356,7]
[314133605,1708015849685,-500.0,0.00038356,7]
[314133606,1708015849694,-517.77898638,0.00038356,7]
[314133607,1708015849703,-500.0,0.00038356,7]
[314133608,1708015849712,-4733.08,0.00038356,7]
[314133609,1708015849722,-769.47,0.00038356,7]
[314133610,1708015849731,-500.0,0.00038356,7]
[314133611,1708015849740,-500.0,0.00038356,7]
[314133612,1708015849749,-506.87181123,0.00038356,7]
[314133613,1708015849758,-500.0,0.00038356,7]
[314133614,1708015849768,-513.54020715,0.00038356,7]
[314133615,1708015849777,-214.5389069,0.00038356,7]
[314133616,1708015849787,-500.0,0.00038356,7]
[314133617,1708015849796,-500.0,0.00038356,7]
[314133618,1708015849805,-605.93,0.00038356,7]
[314133619,1708015849815,-500.0,0.00038356,7]
[314133620,1708015849825,-500.0,0.00038356,7]
[314133621,1708015849834,-500.0,0.00038356,7]
[314133622,1708015849844,-631.25861426,0.00038356,7]
[314133623,1708015849853,-511.45818085,0.00038356,7]
[314133624,1708015849863,-50880.18,0.00038356,7]
[314133625,1708015849872,-500.0,0.00038356,7]
[314133626,1708015849881,-342.44813048,0.00038356,7]
[314133627,1708015849891,-500.0,0.00038356,7]
[314133628,1708015849900,-500.0,0.00038356,7]
[314133629,1708015849910,-500.0,0.00038356,7]
[314133630,1708015849919,-2950.1,0.00038356,7]
[314133631,1708015849929,-500.0,0.00038356,7]
[314133632,1708015849938,-3396.61,0.00038356,7]
[314133633,1708015849947,-510.95356617,0.00038356,7]
[314133634,1708015849956,-500.0,0.00038356,7]
[314133635,1708015849966,-500.0,0.00038356,7]
[314133636,1708015849975,-500.0,0.00038356,7]
[314133637,1708015849985,-500.0,0.00038356,7]
[314133638,1708015849994,-500.0,0.00038356,7]
[314133639,1708015850003,-519.41259209,0.00038356,7]
[314133640,1708015850013,-500.0,0.00038356,7]
[314133641,1708015850022,-500.0,0.00038356,7]
[314133642,1708015850031,-500.0,0.00038356,7]
[314133643,1708015850041,-500.0,0.00038356,7]
[314133644,1708015850050,-500.0,0.00038356,7]
[314133645,1708015850060,-500.0,0.00038356,7]
[314133646,1708015850068,-500.0,0.00038356,7]
[314133647,1708015850078,-500.0,0.00038356,7]
[314133648,1708015850087,-194.50846983,0.00038356,7]
[314133649,1708015850097,-500.0,0.00038356,7]
[314133650,1708015850106,-500.0,0.00038356,7]
[314133651,1708015850116,-500.0,0.00038356,7]
[314133652,1708015850125,-6568.21,0.00038356,7]
[314133653,1708015850135,-720.41,0.00038356,7]
[314133654,1708015850144,-500.0,0.00038356,7]
[314133655,1708015850154,-500.0,0.00038356,7]
[314133656,1708015850163,-500.0,0.00038356,7]
[314133657,1708015850173,-500.0,0.00038356,7]
[314133658,1708015850183,-500.0,0.00038356,7]
[314133659,1708015850192,-500.0,0.00038356,7]
[314133660,1708015850202,-504.02924313,0.00038356,7]
[314133661,1708015850211,-553.92,0.00038356,7]
[314133662,1708015850221,-500.0,0.00038356,7]
[314133663,1708015850230,-500.0,0.00038356,7]
[314133664,1708015850240,-500.0,0.00038356,7]
[314133665,1708015850249,-500.0,0.00038356,7]
[314133666,1708015850259,-505.22,0.00038356,7]
[314133667,1708015850268,-500.0,0.00038356,7]
[314133668,1708015850278,-4773.61,0.00038356,7]
[314133669,1708015850288,-500.0,0.00038356,7]
[314133670,1708015850297,-500.0,0.00038356,7]
[314133671,1708015850307,-501.69,0.00038356,7]
[314133672,1708015850316,-500.0,0.00038356,7]
[314133673,1708015850326,-500.0,0.00038356,7]
[314133674,1708015850335,-1608.57,0.00038356,7]
[314133675,1708015850345,-1405.02,0.00038356,7]
[314133676,1708015850357,-500.0,0.00038356,7]
[314133677,1708015850367,-500.0,0.00038356,7]
[314133678,1708015850377,-631.2,0.00038356,7]
[314133679,1708015850386,-1275.03,0.00038356,7]
[314133680,1708015850397,-3640.79,0.00038356,7]
[314133681,1708015850406,-500.0,0.00038356,7]
[314133682,1708015850416,-517.13296712,0.00038356,7]
[314133683,1708015850426,-500.0,0.00038356,7]
[314133684,1708015850436,-500.0,0.00038356,7]
[314133685,1708015850445,-2384.18,0.00038356,7]
[314133686,1708015850455,-500.0,0.00038356,7]
[314133687,1708015850466,-500.0,0.00038356,7]
[314133688,1708015850475,-511.94586453,0.00038356,7]
[314133689,1708015850484,-1213.6,0.00038356,7]